[Event "*** Titled Tuesday Blitz"]
[Site "Chess.com"]
[Date "2021.03.30"]
[Round "5"]
[White "MarkoPe"]
[Black "Das_Virus_2020"]
[Result "1-0"]
[WhiteElo "2245"]
[BlackElo "2472"]
[TimeControl "180+1"]
[EndTime "10:56:43 PDT"]
[Termination "MarkoPe won by resignation"]

1. e4 {[%clk 0:02:58.9]} 1... e6 {[%clk 0:02:59.5]} 2. d4 {[%clk 0:02:58.9]}
2... d5 {[%clk 0:02:59.5]} 3. Nd2 {[%clk 0:02:59.6]} 3... Nf6 {[%clk 0:02:57.9]}
4. e5 {[%clk 0:03:00.2]} 4... Nfd7 {[%clk 0:02:57.8]} 5. Bd3 {[%clk 0:03:01]}
5... c5 {[%clk 0:02:58.1]} 6. c3 {[%clk 0:03:01.7]} 6... Nc6 {[%clk 0:02:58.6]}
7. Ne2 {[%clk 0:03:02.4]} 7... cxd4 {[%clk 0:02:58.6]} 8. cxd4 {[%clk
0:03:03.1]} 8... f6 {[%clk 0:02:59.2]} 9. exf6 {[%clk 0:03:04]} 9... Nxf6 {[%clk
0:02:59.8]} 10. Nf3 {[%clk 0:03:04.1]} 10... Bd6 {[%clk 0:02:59.9]} 11. O-O
{[%clk 0:03:04.4]} 11... O-O {[%clk 0:03:00.4]} 12. Ng3 {[%clk 0:03:04.3]} 12...
Bd7 {[%clk 0:02:58.2]} 13. Re1 {[%clk 0:03:04.6]} 13... Qc7 {[%clk 0:02:51.5]}
14. Bd2 {[%clk 0:03:03.9]} 14... Rae8 {[%clk 0:02:50]} 15. Rc1 {[%clk
0:03:03.7]} 15... Re7 {[%clk 0:02:48.2]} 16. Bc3 {[%clk 0:03:02.3]} 16... Qb8
{[%clk 0:02:39.5]} 17. a3 {[%clk 0:02:59.8]} 17... Bf4 {[%clk 0:02:35.7]} 18.
Rc2 {[%clk 0:02:56.6]} 18... Be8 {[%clk 0:02:29.8]} 19. Rce2 {[%clk 0:02:55.1]}
19... Bf7 {[%clk 0:02:20.1]} 20. Qc2 {[%clk 0:02:21.1]} 20... a6 {[%clk
0:01:57.8]} 21. Ne5 {[%clk 0:02:20.4]} 21... g6 {[%clk 0:01:47.8]} 22. Nxc6
{[%clk 0:01:47.1]} 22... bxc6 {[%clk 0:01:47.1]} 23. Bxa6 {[%clk 0:01:44.4]}
23... Bd6 {[%clk 0:01:44.4]} 24. Bd3 {[%clk 0:01:40.5]} 24... Rfe8 {[%clk
0:01:18.4]} 25. Qd2 {[%clk 0:01:37.8]} 25... Kg7 {[%clk 0:01:16.3]} 26. a4
{[%clk 0:01:32.3]} 26... Bf4 {[%clk 0:01:14.5]} 27. Qc2 {[%clk 0:01:30.9]} 27...
Ng4 {[%clk 0:01:03.2]} 28. a5 {[%clk 0:01:25.3]} 28... Ra7 {[%clk 0:00:54.3]}
29. a6 {[%clk 0:01:24.3]} 29... Qd8 {[%clk 0:00:53.2]} 30. h3 {[%clk 0:01:08]}
30... Nf6 {[%clk 0:00:45.2]} 31. Bb4 {[%clk 0:01:07.7]} 31... Bd6 {[%clk
0:00:36.5]} 32. Bc5 {[%clk 0:00:55.6]} 32... Bxc5 {[%clk 0:00:35.4]} 33. Qxc5
{[%clk 0:00:56.5]} 33... Qd7 {[%clk 0:00:27.9]} 34. Rc1 {[%clk 0:00:55]} 34...
Rc8 {[%clk 0:00:26.2]} 35. b4 {[%clk 0:00:52.9]} 35... Rac7 {[%clk 0:00:26.4]}
36. Qb6 {[%clk 0:00:44]} 36... Ne8 {[%clk 0:00:25.2]} 37. Rec2 {[%clk 0:00:39]}
37... h5 {[%clk 0:00:17.2]} 38. b5 {[%clk 0:00:38.2]} 38... cxb5 {[%clk
0:00:15.9]} 39. Rxc7 {[%clk 0:00:34.8]} 39... Rxc7 {[%clk 0:00:14.3]} 40. Rxc7
{[%clk 0:00:31.1]} 40... Nxc7 {[%clk 0:00:12]} 41. a7 {[%clk 0:00:30.5]} 41...
b4 {[%clk 0:00:10.2]} 42. Ne2 {[%clk 0:00:24.9]} 42... Qd8 {[%clk 0:00:08.1]}
43. Qxb4 {[%clk 0:00:21.6]} 43... Qa8 {[%clk 0:00:07.3]} 44. Qb8 {[%clk
0:00:22]} 44... Qc6 {[%clk 0:00:05.5]} 45. Qxc7 {[%clk 0:00:18.8]} 45... Qxc7
{[%clk 0:00:05.3]} 46. a8=Q {[%clk 0:00:19.1]} 46... Qd6 {[%clk 0:00:05.4]} 47.
Qa6 {[%clk 0:00:17]} 47... Qe7 {[%clk 0:00:05.1]} 48. Nf4 {[%clk 0:00:16.2]}
48... Qf6 {[%clk 0:00:05.1]} 49. Ne2 {[%clk 0:00:13.7]} 49... h4 {[%clk
0:00:05.5]} 50. Qd6 {[%clk 0:00:12.8]} 50... g5 {[%clk 0:00:05.4]} 51. Qe5
{[%clk 0:00:11.8]} 51... Qxe5 {[%clk 0:00:04.6]} 52. dxe5 {[%clk 0:00:12.7]}
52... Kh6 {[%clk 0:00:04.6]} 53. Nd4 {[%clk 0:00:13]} 53... Kg7 {[%clk
0:00:04.4]} 54. Kf1 {[%clk 0:00:13.3]} 54... Bg8 {[%clk 0:00:04.9]} 55. Ke2
{[%clk 0:00:13.6]} 55... Kh6 {[%clk 0:00:05]} 56. Ke3 {[%clk 0:00:14]} 56... Kh5
{[%clk 0:00:05.9]} 57. Bb5 {[%clk 0:00:13.9]} 57... g4 {[%clk 0:00:06.1]} 58.
Bd7 {[%clk 0:00:14]} 58... gxh3 {[%clk 0:00:06.5]} 59. gxh3 {[%clk 0:00:14.9]}
59... Kg6 {[%clk 0:00:06.3]} 60. Bxe6 {[%clk 0:00:15.1]} 1-0

[Event "*** Titled Tuesday Blitz"]
[Site "Chess.com"]
[Date "2021.03.30"]
[Round "5"]
[White "LEGENYA1998"]
[Black "karwowskikacper"]
[Result "1/2-1/2"]
[WhiteElo "2261"]
[BlackElo "2440"]
[TimeControl "180+1"]
[EndTime "10:56:43 PDT"]
[Termination "Game drawn by agreement"]

1. g3 {[%clk 0:03:00.3]} 1... g6 {[%clk 0:02:57.7]} 2. Bg2 {[%clk 0:02:59.2]}
2... Bg7 {[%clk 0:02:58.6]} 3. f4 {[%clk 0:02:59.5]} 3... d5 {[%clk 0:02:50.5]}
4. Nf3 {[%clk 0:02:59.3]} 4... Nf6 {[%clk 0:02:49.1]} 5. O-O {[%clk 0:02:59.3]}
5... O-O {[%clk 0:02:50]} 6. d3 {[%clk 0:02:52.3]} 6... c6 {[%clk 0:02:47.1]} 7.
Qe1 {[%clk 0:02:51.8]} 7... Qb6+ {[%clk 0:02:45.2]} 8. Kh1 {[%clk 0:02:50]} 8...
Re8 {[%clk 0:02:34.1]} 9. Ne5 {[%clk 0:02:41.8]} 9... Nbd7 {[%clk 0:02:30.1]}
10. Nxd7 {[%clk 0:02:38]} 10... Bxd7 {[%clk 0:02:29.6]} 11. e4 {[%clk
0:02:36.8]} 11... dxe4 {[%clk 0:02:14.4]} 12. dxe4 {[%clk 0:02:36.7]} 12... e5
{[%clk 0:02:15.3]} 13. f5 {[%clk 0:02:33.1]} 13... c5 {[%clk 0:02:00]} 14. Nc3
{[%clk 0:02:32.7]} 14... Bc6 {[%clk 0:01:59.1]} 15. Bg5 {[%clk 0:02:29.9]} 15...
Rf8 {[%clk 0:01:53]} 16. Nd5 {[%clk 0:02:18]} 16... Bxd5 {[%clk 0:01:43.7]} 17.
exd5 {[%clk 0:02:16.8]} 17... Qxb2 {[%clk 0:01:33.9]} 18. Rb1 {[%clk 0:02:15.8]}
18... Qxc2 {[%clk 0:01:29.4]} 19. Rxb7 {[%clk 0:02:15]} 19... Rae8 {[%clk
0:01:15.8]} 20. d6 {[%clk 0:02:06.6]} 20... gxf5 {[%clk 0:01:10.5]} 21. d7
{[%clk 0:01:59.6]} 21... Rd8 {[%clk 0:00:54.2]} 22. Qxe5 {[%clk 0:01:42]} 22...
Nxd7 {[%clk 0:00:37.6]} 23. Qxf5 {[%clk 0:01:39.3]} 23... Qxf5 {[%clk
0:00:37.1]} 24. Rxf5 {[%clk 0:01:39.2]} 24... f6 {[%clk 0:00:31.4]} 25. Be3
{[%clk 0:01:25.9]} 25... Rfe8 {[%clk 0:00:20.2]} 26. Bf2 {[%clk 0:01:15.9]}
26... Ne5 {[%clk 0:00:16.7]} 27. Bxc5 {[%clk 0:01:13.5]} 27... Rc8 {[%clk
0:00:16.8]} 28. Bg1 {[%clk 0:01:11.2]} 28... Rc1 {[%clk 0:00:14.5]} 29. Rf1
{[%clk 0:01:03.7]} 29... Rxf1 {[%clk 0:00:11.2]} 30. Bxf1 {[%clk 0:01:04.1]}
30... Nf3 {[%clk 0:00:11.4]} 31. Bf2 {[%clk 0:00:58.8]} 31... a5 {[%clk
0:00:06.1]} 32. Kg2 {[%clk 0:00:56]} 32... Ne1+ {[%clk 0:00:05.7]} 33. Kh3
{[%clk 0:00:56.2]} 33... Nf3 {[%clk 0:00:05]} 34. Ra7 {[%clk 0:00:49.6]} 34...
Ng5+ {[%clk 0:00:04.5]} 35. Kg2 {[%clk 0:00:49.5]} 35... Re5 {[%clk 0:00:04.5]}
36. Bc4+ {[%clk 0:00:46.3]} 36... Kf8 {[%clk 0:00:03.3]} 37. Ra8+ {[%clk
0:00:40.6]} 37... Ke7 {[%clk 0:00:03.2]} 38. Ra7+ {[%clk 0:00:41]} 38... Kf8
{[%clk 0:00:03.5]} 39. Bb6 {[%clk 0:00:39.3]} 39... Ne6 {[%clk 0:00:02.9]} 40.
Rxa5 {[%clk 0:00:34.3]} 40... Rxa5 {[%clk 0:00:02.4]} 41. Bxa5 {[%clk
0:00:34.5]} 41... Nd4 {[%clk 0:00:03.3]} 42. Bc3 {[%clk 0:00:33.3]} 42... Nc6
{[%clk 0:00:02.9]} 43. a4 {[%clk 0:00:32.1]} 43... f5 {[%clk 0:00:03.3]} 44.
Bxg7+ {[%clk 0:00:25.9]} 44... Kxg7 {[%clk 0:00:04.2]} 45. Bd3 {[%clk
0:00:25.3]} 45... Kf6 {[%clk 0:00:04.3]} 46. Kf3 {[%clk 0:00:25.6]} 46... Ke5
{[%clk 0:00:04.8]} 47. Bb5 {[%clk 0:00:24.5]} 47... Nd4+ {[%clk 0:00:04.5]} 48.
Ke3 {[%clk 0:00:24.6]} 48... Nb3 {[%clk 0:00:04.9]} 49. Kd3 {[%clk 0:00:23.1]}
49... Na5 {[%clk 0:00:03.6]} 50. Kc3 {[%clk 0:00:22.6]} 50... Kd5 {[%clk
0:00:04.1]} 51. Kb4 {[%clk 0:00:22.9]} 51... Nb7 {[%clk 0:00:04.3]} 52. Bd3
{[%clk 0:00:22.9]} 52... Nd6 {[%clk 0:00:03]} 53. a5 {[%clk 0:00:22.4]} 53...
Kc6 {[%clk 0:00:03.4]} 54. h3 {[%clk 0:00:20.8]} 54... h6 {[%clk 0:00:02.2]} 55.
Kc3 {[%clk 0:00:18.7]} 55... Kd5 {[%clk 0:00:01.9]} 56. a6 {[%clk 0:00:18]}
56... Kc6 {[%clk 0:00:01.7]} 57. Be2 {[%clk 0:00:15.8]} 57... Kb6 {[%clk
0:00:01.8]} 58. Kd4 {[%clk 0:00:16.1]} 58... Ne4 {[%clk 0:00:02.3]} 59. g4
{[%clk 0:00:15]} 59... fxg4 {[%clk 0:00:02.6]} 60. hxg4 {[%clk 0:00:13.9]} 60...
Nf6 {[%clk 0:00:02.4]} 61. Ke5 {[%clk 0:00:09.5]} 61... Nxg4+ {[%clk 0:00:02.7]}
62. Bxg4 {[%clk 0:00:09.7]} 62... Kxa6 {[%clk 0:00:03.1]} 63. Kf6 {[%clk
0:00:07.7]} 1/2-1/2

[Event "*** Titled Tuesday Blitz"]
[Site "Chess.com"]
[Date "2021.03.30"]
[Round "5"]
[White "malakismayil"]
[Black "ApoIogiA"]
[Result "0-1"]
[WhiteElo "2312"]
[BlackElo "2194"]
[TimeControl "180+1"]
[EndTime "10:56:43 PDT"]
[Termination "ApoIogiA won by resignation"]

1. e4 {[%clk 0:03:00.9]} 1... c6 {[%clk 0:02:59.6]} 2. d4 {[%clk 0:03:00.3]}
2... d5 {[%clk 0:02:59]} 3. exd5 {[%clk 0:03:01.2]} 3... cxd5 {[%clk 0:02:58.7]}
4. Bd3 {[%clk 0:03:01.7]} 4... Nc6 {[%clk 0:02:56.8]} 5. c3 {[%clk 0:03:02.1]}
5... Nf6 {[%clk 0:02:56.1]} 6. h3 {[%clk 0:03:02.5]} 6... e5 {[%clk 0:02:01]} 7.
dxe5 {[%clk 0:02:57.6]} 7... Nxe5 {[%clk 0:02:00.8]} 8. Bb5+ {[%clk 0:02:56.8]}
8... Bd7 {[%clk 0:02:01.2]} 9. Qe2 {[%clk 0:02:50.2]} 9... Bxb5 {[%clk 0:01:45]}
10. Qxb5+ {[%clk 0:02:45]} 10... Qd7 {[%clk 0:01:44.9]} 11. Qxd7+ {[%clk
0:02:43.6]} 11... Kxd7 {[%clk 0:01:45.8]} 12. Bf4 {[%clk 0:02:36.6]} 12... Nd3+
{[%clk 0:01:45.2]} 13. Kd2 {[%clk 0:02:31.5]} 13... Nxf4 {[%clk 0:01:44.7]} 14.
g3 {[%clk 0:02:31.6]} 14... Ne6 {[%clk 0:01:40]} 15. Nf3 {[%clk 0:02:28.3]}
15... Bc5 {[%clk 0:01:38.5]} 16. Ne5+ {[%clk 0:02:25.8]} 16... Ke7 {[%clk
0:01:35.7]} 17. Nd3 {[%clk 0:02:24.5]} 17... Rhe8 {[%clk 0:01:32.6]} 18. f3
{[%clk 0:02:22.2]} 18... Kd6 {[%clk 0:01:31.9]} 19. b4 {[%clk 0:02:18.4]} 19...
Bb6 {[%clk 0:01:31.3]} 20. Na3 {[%clk 0:02:18.3]} 20... a6 {[%clk 0:01:30.4]}
21. Nc2 {[%clk 0:02:17.8]} 21... Rac8 {[%clk 0:01:28.2]} 22. a4 {[%clk 0:02:11]}
22... Ng5 {[%clk 0:01:22.9]} 23. Raf1 {[%clk 0:01:59.8]} 23... h5 {[%clk
0:01:21.4]} 24. h4 {[%clk 0:01:58.4]} 24... Ne6 {[%clk 0:01:20.3]} 25. a5 {[%clk
0:01:53]} 25... Ba7 {[%clk 0:01:18.1]} 26. Re1 {[%clk 0:01:53.3]} 26... g6
{[%clk 0:01:15]} 27. Re2 {[%clk 0:01:50.5]} 27... Ng7 {[%clk 0:01:14.1]} 28. Rg2
{[%clk 0:01:42.9]} 28... Re7 {[%clk 0:00:58.9]} 29. Nf4 {[%clk 0:01:38.2]} 29...
Rec7 {[%clk 0:00:51.9]} 30. Ne2 {[%clk 0:01:36.9]} 30... Nd7 {[%clk 0:00:47]}
31. Ne3 {[%clk 0:01:09.1]} 31... Bxe3+ {[%clk 0:00:43.8]} 32. Kxe3 {[%clk
0:01:08.7]} 32... Ne5 {[%clk 0:00:44.1]} 33. Rd1 {[%clk 0:01:04.5]} 33... Nc4+
{[%clk 0:00:39.2]} 34. Kf2 {[%clk 0:01:03.3]} 34... Ne6 {[%clk 0:00:24.4]} 35.
Rgg1 {[%clk 0:01:00.3]} 35... Rd7 {[%clk 0:00:22.3]} 36. Rd3 {[%clk 0:00:57.4]}
36... Rcd8 {[%clk 0:00:19.4]} 37. Rgd1 {[%clk 0:00:57.5]} 37... Kc6 {[%clk
0:00:17.9]} 38. Re1 {[%clk 0:00:42.2]} 38... Ne5 {[%clk 0:00:17.7]} 39. Re3
{[%clk 0:00:38.9]} 39... f6 {[%clk 0:00:17.8]} 40. Nd4+ {[%clk 0:00:32.4]} 40...
Nxd4 {[%clk 0:00:17.1]} 41. cxd4 {[%clk 0:00:33.3]} 41... Nc4 {[%clk 0:00:16.5]}
42. Re6+ {[%clk 0:00:33.8]} 42... Rd6 {[%clk 0:00:16.9]} 43. Re7 {[%clk
0:00:33.1]} 43... R8d7 {[%clk 0:00:17.3]} 44. Re8 {[%clk 0:00:32.4]} 44... Kb5
{[%clk 0:00:17.1]} 45. Rb1 {[%clk 0:00:29.7]} 45... Na3 {[%clk 0:00:17.2]} 46.
Rb3 {[%clk 0:00:27.6]} 46... Nc2 {[%clk 0:00:17.3]} 47. Rc8 {[%clk 0:00:25.6]}
47... Nxb4 {[%clk 0:00:15.2]} 48. Rc5+ {[%clk 0:00:24]} 48... Ka4 {[%clk
0:00:15.4]} 49. Rb1 {[%clk 0:00:22.6]} 49... Nd3+ {[%clk 0:00:15.4]} 50. Ke3
{[%clk 0:00:21.2]} 50... Nxc5 {[%clk 0:00:15.2]} 51. dxc5 {[%clk 0:00:19.5]}
51... Rc6 {[%clk 0:00:16]} 52. Kd4 {[%clk 0:00:18.6]} 52... Rdc7 {[%clk
0:00:16]} 53. Ra1+ {[%clk 0:00:13.4]} 53... Kb3 {[%clk 0:00:14.6]} 54. Rb1+
{[%clk 0:00:14.3]} 54... Kc2 {[%clk 0:00:14.7]} 55. Re1 {[%clk 0:00:12.2]} 55...
Rxc5 {[%clk 0:00:15]} 56. Re2+ {[%clk 0:00:12.6]} 56... Kd1 {[%clk 0:00:14.7]}
57. Re6 {[%clk 0:00:10.6]} 57... R5c6 {[%clk 0:00:14.8]} 58. Re3 {[%clk
0:00:09.3]} 58... Rc4+ {[%clk 0:00:14.7]} 59. Kxd5 {[%clk 0:00:09.2]} 59...
R7c5+ {[%clk 0:00:15.3]} 60. Kd6 {[%clk 0:00:09.5]} 60... Rxa5 {[%clk
0:00:15.5]} 61. Rd3+ {[%clk 0:00:08.6]} 61... Ke2 {[%clk 0:00:15.1]} 62. Rb3
{[%clk 0:00:08.8]} 62... Rc6+ {[%clk 0:00:14.9]} 63. Kd7 {[%clk 0:00:08.2]}
63... Rb5 {[%clk 0:00:15.3]} 0-1

[Event "*** Titled Tuesday Blitz"]
[Site "Chess.com"]
[Date "2021.03.30"]
[Round "5"]
[White "sganerdene"]
[Black "muchojogo"]
[Result "1/2-1/2"]
[WhiteElo "2670"]
[BlackElo "2429"]
[TimeControl "180+1"]
[EndTime "10:56:44 PDT"]
[Termination "Game drawn - insufficient material"]

1. e4 {[%clk 0:03:00.9]} 1... c5 {[%clk 0:02:59.6]} 2. Nf3 {[%clk 0:03:01]} 2...
d6 {[%clk 0:03:00.1]} 3. d4 {[%clk 0:03:01.2]} 3... cxd4 {[%clk 0:03:01]} 4.
Nxd4 {[%clk 0:03:02]} 4... Nf6 {[%clk 0:03:01.7]} 5. Nc3 {[%clk 0:03:02.6]} 5...
g6 {[%clk 0:03:02.4]} 6. Be3 {[%clk 0:03:02.5]} 6... Bg7 {[%clk 0:03:02.7]} 7.
Be2 {[%clk 0:03:03]} 7... Nc6 {[%clk 0:03:02.5]} 8. O-O {[%clk 0:03:03.4]} 8...
O-O {[%clk 0:03:03.1]} 9. f4 {[%clk 0:03:03.7]} 9... Qb6 {[%clk 0:03:03.2]} 10.
Qd3 {[%clk 0:03:03.3]} 10... Ng4 {[%clk 0:02:32]} 11. Bxg4 {[%clk 0:03:01.8]}
11... Bxd4 {[%clk 0:02:27.7]} 12. Bxd4 {[%clk 0:03:01.7]} 12... Qxd4+ {[%clk
0:02:23.1]} 13. Qxd4 {[%clk 0:03:01.2]} 13... Nxd4 {[%clk 0:02:24]} 14. Bd1
{[%clk 0:03:01.6]} 14... Be6 {[%clk 0:02:09]} 15. Nd5 {[%clk 0:03:01.1]} 15...
Bxd5 {[%clk 0:02:03]} 16. exd5 {[%clk 0:03:02]} 16... Rac8 {[%clk 0:01:57.8]}
17. c3 {[%clk 0:03:00.5]} 17... Nf5 {[%clk 0:01:58.5]} 18. Re1 {[%clk
0:02:58.9]} 18... Rc7 {[%clk 0:01:41.2]} 19. g4 {[%clk 0:02:56.2]} 19... Ng7
{[%clk 0:01:39.9]} 20. Kf2 {[%clk 0:02:55.8]} 20... Ne8 {[%clk 0:01:39.2]} 21.
Bf3 {[%clk 0:02:52.4]} 21... Nf6 {[%clk 0:01:34.5]} 22. g5 {[%clk 0:02:52.3]}
22... Nd7 {[%clk 0:01:34.3]} 23. Rxe7 {[%clk 0:02:50.2]} 23... Rfc8 {[%clk
0:01:30.2]} 24. Bg4 {[%clk 0:02:45.8]} 24... Nb6 {[%clk 0:01:28.4]} 25. Rxc7
{[%clk 0:02:18.6]} 25... Rxc7 {[%clk 0:01:29.3]} 26. Rd1 {[%clk 0:02:15.7]}
26... a5 {[%clk 0:01:06.6]} 27. Be2 {[%clk 0:02:10.1]} 27... Rc5 {[%clk
0:01:00.6]} 28. Bf3 {[%clk 0:01:59.6]} 28... a4 {[%clk 0:01:00.4]} 29. Rd3
{[%clk 0:01:46.5]} 29... Rb5 {[%clk 0:00:55.6]} 30. Rd2 {[%clk 0:01:20.6]} 30...
Nc4 {[%clk 0:00:46.6]} 31. Be2 {[%clk 0:01:20.9]} 31... Rxb2 {[%clk 0:00:46.7]}
32. Rxb2 {[%clk 0:01:20.7]} 32... Nxb2 {[%clk 0:00:47.6]} 33. Ke1 {[%clk
0:01:14.9]} 33... a3 {[%clk 0:00:47.5]} 34. Bb5 {[%clk 0:01:14.9]} 34... Kg7
{[%clk 0:00:44.4]} 35. Kd2 {[%clk 0:01:14.6]} 35... Kf8 {[%clk 0:00:39.4]} 36.
h4 {[%clk 0:01:14.1]} 36... Ke7 {[%clk 0:00:39.7]} 37. Kc2 {[%clk 0:01:13.8]}
37... f6 {[%clk 0:00:37]} 38. Be2 {[%clk 0:00:46.9]} 38... fxg5 {[%clk 0:00:32]}
39. fxg5 {[%clk 0:00:36.6]} 39... Na4 {[%clk 0:00:32.1]} 40. Kb3 {[%clk
0:00:36.5]} 40... Nc5+ {[%clk 0:00:32.3]} 41. Kxa3 {[%clk 0:00:37]} 41... Ne4
{[%clk 0:00:32.9]} 42. Kb4 {[%clk 0:00:37.4]} 42... Ng3 {[%clk 0:00:32.2]} 43.
Bd3 {[%clk 0:00:32.9]} 43... Nh5 {[%clk 0:00:32.4]} 44. a4 {[%clk 0:00:23.9]}
44... Nf4 {[%clk 0:00:32.5]} 45. Be4 {[%clk 0:00:24.3]} 45... Kd7 {[%clk
0:00:28.5]} 46. a5 {[%clk 0:00:23.9]} 46... Kc7 {[%clk 0:00:28.7]} 47. Kc4
{[%clk 0:00:21.3]} 47... Ne2 {[%clk 0:00:27.7]} 48. Kd3 {[%clk 0:00:19.5]} 48...
Nf4+ {[%clk 0:00:26.3]} 49. Ke3 {[%clk 0:00:19.5]} 49... Nh5 {[%clk 0:00:26.9]}
50. Kf3 {[%clk 0:00:17.9]} 50... Ng7 {[%clk 0:00:27.3]} 51. Kg4 {[%clk
0:00:18.4]} 51... Kb8 {[%clk 0:00:26.8]} 52. Bd3 {[%clk 0:00:18.8]} 52... Ka7
{[%clk 0:00:26.5]} 53. Kf4 {[%clk 0:00:17.9]} 53... Nh5+ {[%clk 0:00:26.4]} 54.
Kf3 {[%clk 0:00:18.4]} 54... Ng7 {[%clk 0:00:27.3]} 55. Kf4 {[%clk 0:00:18.9]}
55... Nh5+ {[%clk 0:00:27.5]} 56. Ke3 {[%clk 0:00:19.1]} 56... Ng7 {[%clk
0:00:28.4]} 57. Kd4 {[%clk 0:00:19.5]} 57... Nh5 {[%clk 0:00:28.1]} 58. c4
{[%clk 0:00:19.9]} 58... b6 {[%clk 0:00:27.9]} 59. axb6+ {[%clk 0:00:19.3]}
59... Kxb6 {[%clk 0:00:28.8]} 60. c5+ {[%clk 0:00:19.8]} 60... dxc5+ {[%clk
0:00:28.6]} 61. Ke5 {[%clk 0:00:20.4]} 61... Kc7 {[%clk 0:00:16.8]} 62. Bb5
{[%clk 0:00:18.2]} 62... Ng7 {[%clk 0:00:15]} 63. d6+ {[%clk 0:00:18.5]} 63...
Kd8 {[%clk 0:00:15.4]} 64. Bd3 {[%clk 0:00:15.7]} 64... c4 {[%clk 0:00:15.2]}
65. Bxc4 {[%clk 0:00:15.7]} 65... Nf5 {[%clk 0:00:15.5]} 66. Bg8 {[%clk
0:00:16]} 66... Nxh4 {[%clk 0:00:15.6]} 67. Bxh7 {[%clk 0:00:16.4]} 67... Nf3+
{[%clk 0:00:15.7]} 68. Kf6 {[%clk 0:00:16.3]} 68... Nxg5 {[%clk 0:00:16]} 69.
Kxg5 {[%clk 0:00:14.9]} 69... Kd7 {[%clk 0:00:16.6]} 70. Bxg6 {[%clk 0:00:15.3]}
70... Kxd6 {[%clk 0:00:17.5]} 1/2-1/2